bitfinex/quotes_BTCUSD_20220211
["timestamp","ask_amount","ask_price","bid_price","bid_amount"]
[1644613643595,0.31995591,42528.0,42525.0,0.108823]
[1644613644044,0.05,42528.0,42525.0,0.108823]
[1644613644243,0.058825,42529.0,42525.0,0.108823]
[1644613646046,0.058825,42529.0,42526.0,0.05882226]
[1644613646246,0.058825,42529.0,42526.0,0.11764626]
[1644613646446,0.058825,42529.0,42526.0,0.058824]
[1644613646647,0.33081,42528.0,42526.0,0.058824]
[1644613646849,0.29286951,42530.0,42520.0,0.5]
[1644613646850,0.07645502,42522.0,42520.0,0.5]
[1644613647054,0.35125309,42523.0,42520.0,0.5]
[1644613647446,0.35125309,42523.0,42520.0,0.558838]
[1644613647697,0.64464423,42523.0,42520.0,0.558838]
[1644613647899,0.41008709,42523.0,42520.0,0.558838]
[1644613648102,0.69166405,42522.0,42521.0,0.05]
[1644613648300,0.69166405,42522.0,42520.0,0.5]
[1644613648502,0.63184835,42521.0,42515.0,0.058844]
[1644613648704,0.69515696,42516.0,42515.0,0.058844]
[1644613648899,0.36434696,42516.0,42515.0,0.058844]
[1644613649101,0.058846,42517.0,42515.0,0.058844]
[1644613649401,0.05,42516.0,42515.0,0.058844]
[1644613649602,0.33081,42516.0,42515.0,0.058844]
[1644613649801,0.108846,42517.0,42515.0,0.058844]
[1644613650208,0.058846,42517.0,42515.0,0.058844]
[1644613650606,0.058846,42517.0,42515.0,0.39435794]
[1644613651467,0.42693761,42527.0,42515.0,0.39435794]
[1644613651666,0.1303,42527.0,42515.0,0.39435794]
[1644613651866,0.05883,42532.0,42525.0,0.29785721]
[1644613652065,0.70541,42531.0,42526.0,0.058829]
[1644613652264,0.32272425,42530.0,42526.0,0.058829]
[1644613652462,0.70541,42529.0,42525.0,0.05]
[1644613652662,1.03979829,42529.0,42523.0,0.167657]
[1644613652863,1.08979829,42529.0,42523.0,0.167657]
[1644613653062,0.058832,42528.0,42523.0,0.167657]
[1644613653262,0.058832,42528.0,42524.0,0.36356474]
[1644613653667,0.058832,42528.0,42525.0,0.058831]
[1644613655993,2.20824036,42527.0,42525.0,0.058831]
[1644613656199,0.05,42527.0,42525.0,0.058831]
[1644613656493,0.058832,42528.0,42525.0,0.058831]
[1644613660046,0.058832,42528.0,42525.0,0.108831]
[1644613660245,0.058832,42528.0,42525.0,0.058831]
[1644613660645,0.3532595,42528.0,42525.0,0.058831]
[1644613660849,0.25389824,42527.0,42525.0,0.058831]
[1644613661047,0.30389824,42527.0,42525.0,0.058831]
[1644613661449,0.28981165,42526.0,42525.0,0.058831]
[1644613661645,0.058832,42528.0,42525.0,0.058831]
[1644613661848,0.70041,42529.0,42525.0,0.058831]
[1644613662246,0.70041,42529.0,42526.0,0.05882251]
[1644613662446,0.70041,42529.0,42526.0,0.17645251]
[1644613662695,0.70041,42529.0,42526.0,0.22645251]
[1644613664103,0.70041,42529.0,42526.0,0.103815]
[1644613664104,0.75041,42529.0,42526.0,0.103815]
[1644613664298,0.058827,42528.0,42526.0,0.103815]
[1644613665000,0.78555943,42528.0,42526.0,0.103815]
[1644613665398,0.45714308,42528.0,42526.0,0.103815]
[1644613666455,0.7597484,42528.0,42526.0,0.103815]
[1644613667253,0.7547484,42528.0,42526.0,0.103815]
[1644613668457,0.45214308,42528.0,42526.0,0.103815]
[1644613668855,0.053827,42528.0,42526.0,0.103815]
[1644613669258,0.75041,42529.0,42526.0,0.103815]
[1644613669456,0.31340342,42528.0,42526.0,0.103815]
[1644613669762,0.05,42527.0,42523.0,0.05]
[1644613669955,0.05,42527.0,42515.0,0.35328868]
[1644613670199,0.05,42527.0,42514.0,0.19714562]
[1644613670400,0.058836,42522.0,42514.0,0.19714562]
[1644613670613,0.058836,42522.0,42519.0,0.3449326]
[1644613670999,0.058836,42522.0,42519.0,0.108833]
[1644613671818,0.058836,42522.0,42519.0,0.108833]
[1644613673115,0.33771443,42520.0,42519.0,0.108833]
[1644613673616,0.05,42521.0,42519.0,0.108833]
[1644613673879,0.05,42524.0,42519.0,0.108833]
[1644613674269,0.12072407,42525.0,42519.0,0.108833]
[1644613674670,0.39782794,42519.0,42512.0,0.29145314]
[1644613674872,0.058832,42524.0,42514.0,0.058835]
[1644613675072,0.07072407,42525.0,42514.0,0.058835]
[1644613675372,0.23890903,42527.0,42516.0,0.058828]
[1644613675671,0.27445983,42523.0,42516.0,0.058828]
[1644613675872,0.31228919,42522.0,42516.0,0.058828]
[1644613676072,0.27445983,42523.0,42516.0,0.058828]
[1644613676272,0.32445983,42523.0,42516.0,0.108828]
[1644613676672,0.32445983,42523.0,42519.0,0.058831]
[1644613677078,0.55816959,42523.0,42519.0,0.108831]
[1644613677273,0.60816959,42523.0,42519.0,0.108831]
[1644613678113,0.60816959,42523.0,42519.0,0.16765886]
[1644613678312,0.55816959,42523.0,42519.0,0.16765886]
[1644613678514,0.28370976,42523.0,42519.0,0.16765886]
[1644613678712,0.28370976,42523.0,42519.0,0.108831]
[1644613678913,0.28370976,42523.0,42519.0,0.038831]
[1644613679112,0.28370976,42523.0,42519.0,0.05882831]
[1644613679312,0.108827,42527.0,42519.0,0.05882831]
[1644613679617,0.05,42530.0,42519.0,0.117658]
[1644613680212,0.05,42530.0,42524.0,0.29843779]
[1644613680411,0.05,42530.0,42524.0,0.41607979]
[1644613680611,0.05,42530.0,42525.0,0.05]
[1644613680813,0.05,42530.0,42525.0,0.10882]
[1644613681011,0.75041,42529.0,42525.0,0.10882]
[1644613681662,0.75041,42529.0,42525.0,0.10682]
[1644613681861,0.75041,42529.0,42525.0,0.165641]
[1644613682061,0.75041,42529.0,42518.0,0.2886116]
[1644613682062,0.19198123,42527.0,42518.0,0.2886116]
[1644613682364,0.3690376,42526.0,42518.0,0.2886116]
[1644613682760,0.3690376,42526.0,42516.0,0.39227236]
[1644613682761,0.3690376,42526.0,42523.0,0.176459]
[1644613683360,0.3690376,42526.0,42523.0,0.226459]
[1644613683562,0.4278646,42526.0,42523.0,0.226459]
[1644613684362,0.51403149,42526.0,42523.0,0.226459]
[1644613684966,0.51403149,42526.0,42523.0,0.05]
[1644613685212,0.51403149,42526.0,42507.0,0.1]
[1644613685213,0.22027017,42521.0,42520.0,0.058839]
[1644613685715,0.10884,42523.0,42504.0,0.11767845]
[1644613685716,0.21236474,42514.0,42504.0,0.11767845]
[1644613685923,0.21236474,42514.0,42502.0,0.4042]
[1644613685924,0.27593085,42510.0,42502.0,0.4042]
[1644613686113,0.167705,42513.0,42507.0,0.058847]
[1644613686114,0.05,42513.0,42507.0,0.058847]
[1644613686613,0.37160845,42512.0,42507.0,0.058847]
[1644613686814,0.42160845,42512.0,42507.0,0.058847]
[1644613687114,0.08996561,42511.0,42507.0,0.058847]
[1644613687715,0.13996561,42511.0,42507.0,0.058847]
[1644613687915,0.13996561,42511.0,42507.0,0.117693]
[1644613688115,0.37160845,42512.0,42507.0,0.117693]
[1644613688970,0.37160845,42512.0,42501.0,0.28803625]
[1644613689171,0.23497293,42515.0,42501.0,0.28803625]
[1644613689373,0.05,42515.0,42501.0,0.28803625]
[1644613689770,0.0649838,42516.0,42508.0,0.058843]
[1644613689970,0.32230225,42515.0,42508.0,0.058844]
[1644613690175,0.32230225,42515.0,42506.0,0.5516086]
[1644613690574,0.32230225,42515.0,42506.0,0.176523]
[1644613690773,0.37230225,42515.0,42506.0,0.176523]
[1644613691075,0.71759629,42515.0,42506.0,0.176523]
[1644613691374,0.07048784,42514.0,42506.0,0.176523]
[1644613691572,0.12048784,42514.0,42506.0,0.176523]
[1644613691775,0.07048784,42514.0,42510.0,0.058843]
[1644613691973,0.12048784,42514.0,42510.0,0.058843]
[1644613692175,0.05,42514.0,42510.0,0.058843]
[1644613692374,0.37230225,42515.0,42510.0,0.058843]
[1644613693110,0.37230225,42515.0,42510.0,0.117685]
[1644613693711,0.108842,42515.0,42510.0,0.12709]
[1644613693911,0.7955,42528.0,42510.0,0.068248]
[1644613694114,0.3883,42528.0,42511.0,0.40884]
[1644613694310,0.3883,42528.0,42515.0,0.058826]
[1644613694510,0.05,42530.0,42515.0,0.058826]
[1644613694711,0.31418822,42528.0,42518.0,0.05882019]
[1644613694910,0.31418822,42528.0,42526.0,0.39105608]
[1644613695313,0.31418822,42528.0,42526.0,0.117635]
[1644613695711,0.31418822,42528.0,42526.0,0.167635]
[1644613695911,0.31418822,42528.0,42515.0,0.046988]
[1644613696112,0.31418822,42528.0,42526.0,0.05881733]
[1644613696390,0.70041,42529.0,42526.0,0.05881733]
[1644613697183,0.70041,42529.0,42526.0,0.17645233]
[1644613697482,1.02995661,42529.0,42526.0,0.22645233]
[1644613697684,0.70041,42529.0,42526.0,0.22645233]
[1644613698087,0.70041,42529.0,42526.0,0.53085082]
[1644613698285,0.70041,42529.0,42526.0,0.58966182]
[1644613698484,0.70041,42529.0,42526.0,0.28526333]
[1644613698683,0.70041,42529.0,42527.0,0.71579732]
[1644613698884,0.70041,42529.0,42527.0,0.46293441]
[1644613699986,0.70041,42529.0,42527.0,0.52174541]
[1644613700617,0.70041,42529.0,42527.0,0.46293441]
[1644613701517,0.70041,42529.0,42527.0,0.47233541]
[1644613703221,0.70041,42529.0,42527.0,0.52233541]
[1644613703416,0.70041,42529.0,42527.0,0.47233541]
[1644613704362,0.70041,42529.0,42527.0,0.36756913]
[1644613704760,0.70041,42529.0,42527.0,0.41756913]
[1644613705161,0.70041,42529.0,42528.0,0.058809]
[1644613706262,0.70041,42529.0,42528.0,0.36448592]
[1644613706463,0.16648336,42529.0,42528.0,0.36448592]
[1644613706662,0.05,42540.0,42528.0,0.41448592]
[1644613706962,0.05,42540.0,42534.0,0.05879823]
[1644613707163,0.05,42540.0,42535.0,0.34386253]
[1644613707811,0.00137613,42541.0,42535.0,0.63783779]
[1644613708010,0.00137613,42541.0,42536.0,0.176374]
[1644613708610,0.002,42546.0,42542.0,0.39474659]
[1644613708611,0.00037613,42546.0,42542.0,0.39474659]
[1644613709613,0.00037613,42546.0,42542.0,0.058795]
[1644613710414,0.05037613,42546.0,42542.0,0.058795]
[1644613711465,0.00037613,42546.0,42542.0,0.058795]
[1644613713865,0.24631034,42540.0,42532.0,0.40372286]
[1644613714266,0.24631034,42540.0,42528.0,0.15]
[1644613714564,0.30909302,42544.0,42535.0,0.176385]
[1644613714764,0.00037613,42546.0,42535.0,0.176385]
[1644613715614,0.00037613,42546.0,42539.0,0.38009379]
[1644613715815,0.00037613,42546.0,42540.0,0.05879]
[1644613717217,0.00037613,42546.0,42542.0,0.05879]
[1644613717518,0.00037613,42546.0,42543.0,0.0435]
[1644613717716,0.00037613,42546.0,42543.0,0.219819]
[1644613718722,0.00037613,42546.0,42544.0,0.117546]
[1644613718963,0.00037613,42546.0,42545.0,0.0435]
[1644613719562,0.002,42554.0,42545.0,0.54831114]
[1644613719762,0.002,42554.0,42546.0,0.38952853]
[1644613719963,0.002,42554.0,42547.0,0.0435]
[1644613720162,0.002,42554.0,42548.0,0.058771]
[1644613720363,0.05,42560.0,42550.0,0.1416]
[1644613720663,0.05,42560.0,42552.0,0.2]
[1644613720962,0.05,42560.0,42553.0,0.0435]
[1644613721164,0.000544,42563.0,42553.0,0.0435]
[1644613721368,0.27801676,42561.0,42556.0,0.37238061]
[1644613721562,0.27801676,42561.0,42556.0,0.43114261]
[1644613721762,0.001,42561.0,42556.0,0.58990503]
[1644613722364,0.001,42561.0,42556.0,0.94866703]
[1644613722617,0.001,42561.0,42557.0,0.161009]
[1644613722815,0.001,42561.0,42558.0,0.11750812]
[1644613723016,0.001,42561.0,42559.0,0.161008]
[1644613723217,0.001,42561.0,42559.0,0.27851228]
[1644613723418,0.1,42562.0,42559.0,0.27851228]
[1644613723619,0.1,42562.0,42560.0,0.058752]
[1644613723919,0.1,42562.0,42561.0,0.0435]
[1644613724117,0.1,42562.0,42561.0,0.102253]
[1644613726866,0.1,42562.0,42561.0,0.0435]
[1644613727064,0.17882689,42562.0,42561.0,0.0435]
[1644613727866,0.17882689,42562.0,42560.0,0.058752]
[1644613730213,0.1,42562.0,42560.0,0.058752]
[1644613731017,0.41684662,42562.0,42560.0,0.058752]
[1644613731317,0.1,42562.0,42560.0,0.058752]
[1644613734372,0.1,42562.0,42561.0,0.05876]
[1644613734768,0.1,42562.0,42560.0,0.058752]
[1644613735368,0.16495523,42562.0,42560.0,0.058752]
[1644613735772,0.1,42562.0,42558.0,0.058755]
[1644613736472,0.34891192,42562.0,42558.0,0.058755]
[1644613736670,0.34891192,42562.0,42558.0,0.117526]
[1644613737073,0.34891192,42562.0,42559.0,0.05]
[1644613737474,0.06728789,42560.0,42559.0,0.05]
[1644613737714,0.11719207,42560.0,42558.0,0.117526]
[1644613737913,0.06728789,42560.0,42558.0,0.117526]
[1644613738115,0.06728789,42560.0,42558.0,0.058755]
[1644613738713,0.09990418,42561.0,42558.0,0.058755]
[1644613738714,0.1,42562.0,42558.0,0.058755]
[1644613739313,0.1,42562.0,42558.0,0.11752389]
[1644613739714,0.1,42562.0,42559.0,0.05]
[1644613740517,0.1,42562.0,42560.0,0.0587671]
[1644613740722,0.1,42562.0,42561.0,0.0435]
[1644613741476,0.1,42562.0,42561.0,0.4539942]
[1644613742275,0.1,42562.0,42561.0,0.5539942]
[1644613742575,0.1,42562.0,42561.0,0.152259]
[1644613742775,0.1,42562.0,42561.0,0.05]
[1644613742776,0.14990418,42562.0,42561.0,0.05]
[1644613742974,0.21905541,42562.0,42560.0,0.226262]
[1644613743176,0.21905541,42562.0,42560.0,0.176262]
[1644613743374,0.54012679,42562.0,42560.0,0.058753]
[1644613743575,0.87439999,42562.0,42560.0,0.058753]
[1644613744375,0.82439999,42562.0,42560.0,0.058753]
[1644613744582,0.75524876,42562.0,42560.0,0.058753]
[1644613744778,0.75524876,42562.0,42560.0,0.108753]
[1644613745418,0.75524876,42562.0,42560.0,0.167523]
[1644613745618,0.1345284,42561.0,42548.0,0.176309]
[1644613745822,0.1345284,42561.0,42545.0,0.18676767]
[1644613745823,0.07151302,42552.0,42545.0,0.18676767]
[1644613746019,0.04990418,42551.0,42540.0,0.45556596]
[1644613746819,0.04990418,42551.0,42540.0,0.04656596]
[1644613747224,0.37199905,42551.0,42540.0,0.04656596]
[1644613747621,0.37199905,42551.0,42541.0,0.058795]
[1644613747820,0.37199905,42551.0,42550.0,0.0501]
[1644613747821,0.39152281,42551.0,42550.0,0.0501]
[1644613748021,0.47605121,42551.0,42550.0,0.0001]
[1644613748220,0.52605121,42551.0,42550.0,0.0001]
[1644613749366,0.09990418,42551.0,42550.0,0.0001]
[1644613749771,0.38164969,42552.0,42550.0,0.0001]
[1644613749969,0.04990418,42551.0,42550.0,0.0001]
[1644613750169,0.04990418,42551.0,42550.0,0.058887]
[1644613750571,0.04990418,42551.0,42550.0,0.0001]
[1644613750572,0.13443258,42551.0,42550.0,0.0001]
[1644613750872,0.40799588,42551.0,42550.0,0.0001]
[1644613751670,0.68833745,42551.0,42550.0,0.0001]
[1644613752072,0.73833745,42551.0,42550.0,0.0001]
[1644613752274,0.79713345,42551.0,42550.0,0.0001]
[1644613753710,0.52357015,42551.0,42550.0,0.0001]
[1644613754010,0.58904175,42551.0,42546.0,0.117594]
[1644613754212,0.09990418,42547.0,42540.0,0.04656596]
[1644613754411,0.09990418,42541.0,42540.0,0.04656596]
[1644613754610,0.04990418,42541.0,42540.0,0.04656596]
[1644613755215,0.04990418,42549.0,42542.0,0.14971254]
[1644613755611,0.17520418,42554.0,42542.0,0.31728654]
[1644613756011,0.17520418,42554.0,42546.0,0.35006867]
[1644613756215,0.04990418,42554.0,42548.0,0.11757]
[1644613756471,0.050544,42563.0,42548.0,0.058785]
[1644613756472,0.04990418,42558.0,42548.0,0.058785]
[1644613756872,0.000544,42563.0,42557.0,0.117546]
[1644613757071,0.31084188,42561.0,42557.0,0.57031458]
[1644613757271,0.31084188,42561.0,42558.0,0.058765]
[1644613757272,0.04990418,42559.0,42558.0,0.058765]
[1644613757670,0.31084188,42561.0,42558.0,0.058765]
[1644613759073,0.35599702,42559.0,42558.0,0.06816]
[1644613759272,0.04990418,42559.0,42558.0,0.06816]
[1644613759473,0.24196726,42563.0,42558.0,0.058765]
[1644613759676,0.19990418,42562.0,42558.0,0.058765]
[1644613760127,0.0001,42559.0,42558.0,0.058765]
[1644613760326,0.0001,42559.0,42558.0,0.108765]
[1644613761826,0.0001,42559.0,42556.0,0.01846554]
[1644613762328,0.0846284,42559.0,42557.0,0.176312]
[1644613762527,0.09990418,42558.0,42557.0,0.058766]
[1644613762730,0.09990418,42558.0,42556.0,0.01846554]
[1644613762929,0.04990418,42558.0,42556.0,0.01846554]
[1644613764774,0.04990418,42558.0,42556.0,0.06846554]
[1644613764973,0.04990418,42558.0,42556.0,0.01846554]
[1644613765173,0.04990418,42558.0,42556.0,0.06846554]
[1644613765374,0.04990418,42558.0,42556.0,0.01846554]
[1644613765375,0.11657228,42558.0,42556.0,0.01846554]
[1644613765573,0.11657228,42558.0,42556.0,0.06846554]
[1644613765773,0.11657228,42558.0,42556.0,0.01846554]
[1644613765975,0.11657228,42558.0,42556.0,0.06846554]
[1644613766177,0.17535228,42558.0,42556.0,0.06846554]
[1644613767075,0.10868418,42558.0,42556.0,0.06846554]
[1644613767275,0.04990418,42558.0,42556.0,0.06846554]
[1644613767724,0.05000418,42559.0,42556.0,0.06846554]
[1644613767927,0.05000418,42559.0,42557.0,0.058773]
[1644613768323,0.05000418,42559.0,42557.0,0.108773]
[1644613770827,0.37765566,42559.0,42557.0,0.108773]
[1644613771475,0.05000418,42559.0,42557.0,0.108773]
[1644613772775,0.05000418,42559.0,42557.0,0.058773]
[1644613773374,0.13877241,42559.0,42557.0,0.058773]
[1644613773576,0.12377241,42559.0,42557.0,0.058773]
[1644613773874,0.03500418,42558.0,42557.0,0.058773]
[1644613774074,0.03500418,42558.0,42557.0,0.108773]
[1644613774277,0.08876823,42559.0,42557.0,0.108773]
[1644613774475,0.03500418,42560.0,42557.0,0.108773]
[1644613774775,0.1,42562.0,42557.0,0.167546]
[1644613774776,0.03500418,42559.0,42557.0,0.167546]
[1644613777218,0.03500418,42559.0,42557.0,0.117546]
[1644613777615,0.09378218,42559.0,42557.0,0.117546]
[1644613778419,0.09378218,42559.0,42557.0,0.167546]
[1644613779667,0.03500418,42559.0,42557.0,0.167546]
[1644613783831,0.00708234,42558.0,42557.0,0.108773]
[1644613784230,0.158774,42562.0,42557.0,0.108773]
[1644613784432,0.158774,42562.0,42558.0,0.0435]
[1644613784433,0.1,42562.0,42558.0,0.0435]
[1644613784630,0.1,42562.0,42558.0,0.102261]
[1644613784830,0.1,42562.0,42558.0,0.152261]
[1644613785230,0.1,42562.0,42560.0,0.28949054]
[1644613785531,0.1,42562.0,42561.0,0.0435]
[1644613788274,0.000544,42563.0,42561.0,0.0435]
[1644613788476,0.000544,42563.0,42561.0,0.33728088]
[1644613788874,0.000544,42563.0,42562.0,0.05]
[1644613790131,0.002,42567.0,42562.0,0.05]
[1644613790132,0.14128671,42582.0,42572.0,0.2]
[1644613790325,0.14128671,42582.0,42579.0,0.01499582]
[1644613790524,0.001,42584.0,42580.0,0.9935]
[1644613790525,0.34728882,42583.0,42580.0,0.9935]
[1644613790726,0.34528882,42583.0,42582.0,0.01499582]
[1644613790925,0.052,42594.0,42582.0,0.05849582]
[1644613791228,0.052,42594.0,42584.0,0.058721]
[1644613791423,0.052,42594.0,42585.0,0.0435]
[1644613791624,0.052,42594.0,42586.0,0.01499582]
[1644613792023,0.052,42594.0,42587.0,0.0435]
[1644613792828,0.052,42594.0,42587.0,0.269662]
[1644613792829,0.03700418,42594.0,42587.0,0.269662]
[1644613793024,0.002,42594.0,42587.0,0.269662]
[1644613793627,0.002,42594.0,42588.0,0.11743972]
[1644613793910,0.002,42594.0,42589.0,0.0435]
[1644613794400,0.002,42594.0,42590.0,0.176158]
[1644613794700,0.002,42594.0,42591.0,0.0935]
[1644613794899,0.002,42594.0,42591.0,0.269658]
[1644613795099,0.002,42594.0,42592.0,0.05872]
[1644613795500,0.002,42594.0,42592.0,0.10222]
[1644613801120,0.001,42596.0,42594.0,1.05]
[1644613801378,0.002,42601.0,42595.0,0.0435]
[1644613801575,0.002,42601.0,42596.0,0.08]
[1644613801773,0.002,42601.0,42599.0,0.08]
[1644613801971,0.002,42601.0,42600.0,0.1235]
[1644613802371,0.002,42601.0,42600.0,0.1735]
[1644613803273,0.03700418,42601.0,42600.0,0.1735]
[1644613804274,0.03700418,42601.0,42600.0,0.1705]
[1644613804472,0.002,42601.0,42600.0,0.1705]
[1644613805338,0.002,42601.0,42600.0,0.08]
[1644613805738,0.002,42601.0,42600.0,0.08066845]
[1644613806641,0.002,42601.0,42600.0,0.13066845]
[1644613810672,0.28802128,42602.0,42600.0,0.13066845]
[1644613811174,0.28802128,42602.0,42600.0,0.08066845]
[1644613811377,0.28802128,42602.0,42593.0,0.11742]
[1644613811379,1.25,42601.0,42589.0,0.117431]
[1644613811576,0.11953258,42595.0,42587.0,0.1221]
[1644613811774,0.11953258,42595.0,42592.0,0.05873]
[1644613811978,0.31520425,42594.0,42592.0,0.05873]
[1644613812175,0.39973265,42594.0,42592.0,0.05873]
[1644613812620,0.78821659,42594.0,42592.0,0.05873]
[1644613812821,0.0845284,42594.0,42592.0,0.05873]
[1644613813123,0.0845284,42594.0,42592.0,0.117456]
[1644613813922,0.39176411,42594.0,42592.0,0.117456]
[1644613814123,0.0845284,42594.0,42592.0,0.167456]
[1644613814323,0.1301,42600.0,42592.0,0.167456]
[1644613814324,0.03500418,42602.0,42592.0,0.17617953]
[1644613814526,0.03500418,42602.0,42594.0,0.058714]
[1644613814722,0.03500418,42596.0,42595.0,0.058717]
[1644613814928,0.03500418,42596.0,42591.0,0.058695]
[1644613814929,0.22280739,42593.0,42591.0,0.058695]
[1644613815125,0.22280739,42593.0,42580.0,0.0001]
[1644613815126,0.38000418,42592.0,42580.0,0.0001]
[1644613815324,0.03000418,42581.0,42574.0,0.17629039]
[1644613815524,0.03000418,42581.0,42578.0,0.11748]
[1644613815724,0.03000418,42581.0,42579.0,0.0001]
[1644613815923,0.03000418,42581.0,42579.0,0.058843]
[1644613816123,0.0845284,42585.0,42579.0,0.058743]
[1644613816375,0.11453258,42585.0,42580.0,0.05873822]
[1644613816571,0.03000418,42585.0,42580.0,0.05873822]
[1644613817172,0.0845284,42583.0,42581.0,0.058738]
[1644613817371,0.03000418,42582.0,42581.0,0.05]
[1644613817772,0.08000418,42582.0,42581.0,0.05]
[1644613817971,0.08000418,42582.0,42577.0,0.0001]
[1644613818173,0.03000418,42582.0,42578.0,0.0001]
[1644613818574,0.03000418,42585.0,42577.0,0.05874334]
[1644613818772,0.03000418,42585.0,42575.0,0.11747997]
[1644613818971,0.03000418,42585.0,42578.0,0.0001]
[1644613819171,0.33023108,42585.0,42578.0,0.117475]
[1644613819370,0.33023108,42585.0,42578.0,0.167475]
[1644613819973,0.33023108,42585.0,42580.0,0.05873709]
[1644613820218,0.3002269,42585.0,42581.0,0.05874]
[1644613820423,0.11453258,42582.0,42578.0,0.0001]
[1644613820620,0.08488454,42581.0,42576.0,0.0001]
[1644613820822,0.37404675,42576.0,42575.0,0.0001]
[1644613821024,0.37092543,42580.0,42579.0,0.15922062]
[1644613821221,0.41592543,42580.0,42579.0,0.15922062]
[1644613821421,0.44592961,42580.0,42579.0,0.15922062]
[1644613821623,0.15953258,42580.0,42579.0,0.15922062]
[1644613822022,0.15953258,42580.0,42579.0,0.15117662]
[1644613822425,0.10953258,42580.0,42579.0,0.15117662]
[1644613822623,0.03000418,42580.0,42579.0,0.15117662]
[1644613822822,0.10953258,42580.0,42579.0,0.15117662]
[1644613823878,0.10953258,42580.0,42579.0,0.50437463]
[1644613825272,0.03000418,42580.0,42579.0,0.50437463]
[1644613826075,0.57610603,42586.0,42579.0,0.50437463]
[1644613826275,0.03000418,42584.0,42581.0,0.058737]
[1644613826476,0.03000418,42584.0,42581.0,0.11747521]
[1644613827075,0.03000418,42584.0,42581.0,0.17621421]
[1644613827276,0.1768,42592.0,42581.0,0.17621421]
[1644613827277,0.03000418,42588.0,42581.0,0.17621421]
[1644613827476,0.03000418,42588.0,42584.0,0.058739]
[1644613827918,0.08788246,42590.0,42584.0,0.058739]
[1644613828119,0.08788246,42590.0,42580.0,0.23494224]
[1644613828120,0.03000418,42585.0,42580.0,0.117473]
[1644613828319,0.05,42586.0,42580.0,0.117473]
[1644613828518,0.24078525,42592.0,42580.0,0.117473]
[1644613828519,0.03000418,42585.0,42580.0,0.117473]
[1644613829221,0.10953258,42585.0,42580.0,0.117473]
[1644613830020,0.10953258,42585.0,42580.0,0.17621473]
[1644613830325,0.03000418,42585.0,42580.0,0.17621473]
[1644613830521,0.10953258,42585.0,42580.0,0.17621473]
[1644613830721,0.03000418,42581.0,42580.0,0.117473]
[1644613830924,0.03000418,42581.0,42579.0,0.15117662]
[1644613831122,0.08000418,42581.0,42579.0,0.15117662]
[1644613831383,0.058753,42580.0,42579.0,0.15117662]
[1644613831578,0.39126891,42580.0,42579.0,0.15117662]
[1644613831779,0.108753,42580.0,42579.0,0.15117662]
[1644613832079,0.1295284,42580.0,42579.0,0.15117662]
[1644613832278,0.0795284,42580.0,42579.0,0.15117662]
[1644613832882,0.25595602,42580.0,42579.0,0.15117662]
[1644613833079,0.33548442,42580.0,42579.0,0.15117662]
[1644613835942,0.0795284,42580.0,42579.0,0.15117662]
[1644613836945,0.37989596,42580.0,42579.0,0.15117662]
[1644613837944,0.0795284,42580.0,42579.0,0.15117662]
[1644613838146,0.03000418,42581.0,42579.0,0.15117662]
[1644613839571,0.5306391,42591.0,42579.0,0.15117662]
[1644613839772,0.5306391,42591.0,42586.0,0.058737]
[1644613840072,0.5306391,42591.0,42586.0,0.17621]
[1644613840073,0.4039391,42591.0,42586.0,0.17621]
[1644613840275,0.03000418,42587.0,42586.0,0.17621]
[1644613840473,0.03000418,42587.0,42586.0,0.117473]
[1644613842922,0.08000418,42587.0,42586.0,0.117473]
[1644613843122,0.08000418,42587.0,42579.0,0.15117662]
[1644613843328,0.05,42581.0,42579.0,0.15117662]
[1644613843522,0.10953258,42580.0,42579.0,0.15117662]
[1644613843723,0.15953258,42580.0,42579.0,0.15117662]
[1644613844823,0.15953258,42580.0,42579.0,0.15109241]
[1644613845023,0.10953258,42580.0,42579.0,0.15109241]
[1644613845624,0.0795284,42584.0,42579.0,0.15109241]
[1644613845829,0.03000418,42584.0,42582.0,0.058736]
[1644613846025,0.03000418,42584.0,42583.0,0.39906477]
[1644613846875,0.0795284,42587.0,42583.0,0.96674042]
[1644613846876,0.03000418,42587.0,42583.0,0.96674042]
[1644613847078,0.1305,42599.0,42584.0,0.058727]
[1644613847272,0.1305,42599.0,42584.0,0.102227]
[1644613847273,0.03000418,42592.0,42584.0,0.102227]
[1644613847473,0.03000418,42586.0,42584.0,0.0435]
[1644613847671,0.0795284,42594.0,42584.0,0.0435]
[1644613847871,0.03000418,42590.0,42586.0,0.117458]
[1644613848073,0.03000418,42590.0,42586.0,0.17618673]
[1644613848276,0.03000418,42587.0,42586.0,0.117458]
[1644613849172,0.03000418,42587.0,42586.0,0.234916]
[1644613852026,0.03000418,42587.0,42586.0,0.117458]
[1644613854873,0.03000418,42587.0,42586.0,0.17619054]
[1644613855273,0.0795284,42589.0,42586.0,0.17619054]
[1644613855274,0.03000418,42588.0,42586.0,0.17619054]
[1644613855474,0.0795284,42587.0,42586.0,0.17619054]
[1644613855674,0.03000418,42588.0,42586.0,0.117458]
[1644613856073,0.0795284,42587.0,42586.0,0.117458]
[1644613856275,0.03000418,42588.0,42586.0,0.117458]
[1644613857074,0.03000418,42588.0,42586.0,0.176192]
[1644613857928,0.59091279,42595.0,42586.0,0.176192]
[1644613857929,0.9422,42598.0,42586.0,0.23492]
[1644613858131,0.03000418,42592.0,42588.0,0.11745]
[1644613858328,0.03000418,42592.0,42588.0,0.176173]
[1644613858526,0.03000418,42592.0,42588.0,0.47650378]
[1644613858726,0.1305,42599.0,42588.0,0.47650378]
[1644613858727,0.05,42594.0,42588.0,0.47650378]
[1644613858929,0.05,42594.0,42591.0,0.34790848]
[1644613859326,0.32250292,42595.0,42591.0,0.34790848]
[1644613859327,0.37250292,42595.0,42591.0,0.34790848]
[1644613859527,0.0795284,42593.0,42591.0,0.34790848]
[1644613859726,0.0795284,42593.0,42591.0,0.40663748]
[1644613860227,0.10953258,42595.0,42591.0,0.40663748]
[1644613860427,0.10953258,42595.0,42591.0,0.46536328]
[1644613861153,0.10953258,42595.0,42591.0,0.52408528]
[1644613861154,0.03000418,42595.0,42591.0,0.52408528]